{"text_format":"3","workbook":"xlsx","n_sheets":4,"sheets":["Rezumat","Totaluri","Venit","Cheltuieli"],"not_rendered":{"defined_names":13},"read":"whole","date_system":"1900"}

{"sheet":"Rezumat","index":0,"n_rows":6,"n_cols":3,"rows_kept":6,"merged":[[0,1,0,2],[1,1,1,2]]}
[null,"BUGET FAMILIAL LUNAR"]
[null,"REZUMAT"]
[null,"Sold","Sumă"]
[null,"Sold proiectat (venit proiectat minus cheltuieli)",{"$f":"VenitProiectat-CheltuieliProietate","v":{"v":1114,"d":"1,114 lei"}}]
[null,"Sold real (venit real minus cheltuieli)",{"$f":"VenitReal-CheltuieliReale","v":{"v":997,"d":"997 lei"}}]
[null,"Diferență (real minus proiectat)",{"$f":"SoldReal-SoldProiectat","v":{"v":-117,"d":"-117 lei"}}]

{"sheet":"Totaluri","index":1,"n_rows":6,"n_cols":3,"rows_kept":6,"merged":[[0,1,0,2],[1,1,1,2]]}
[null,{"$f":"Titlu_RegistruLucru","v":"BUGET FAMILIAL LUNAR"}]
[null,"Totaluri"]
[null,"Totaluri","Sumă"]
[null,"Costul total proiectat",{"$f":"CheltuieliProietate","v":{"v":4486,"d":"4,486 lei"}}]
[null,"Costul total real",{"$f":"CheltuieliReale","v":{"v":4603,"d":"4,603 lei"}}]
[null,"Diferență totaluri",{"$f":"C4-C5","v":{"v":-117,"d":"-117 lei"}}]

{"sheet":"Venit","index":2,"n_rows":7,"n_cols":5,"rows_kept":7,"merged":[[0,1,0,4],[1,1,1,4]]}
[null,{"$f":"Titlu_RegistruLucru","v":"BUGET FAMILIAL LUNAR"}]
[null,"VENIT"]
[null,"Venit proiectat","Proiectat","Real","Diferență"]
[null,"Venit 1",{"v":4000,"d":"4,000.00 lei"},{"v":4000,"d":"4,000.00 lei"},{"$f":"TabelVenit[[#This Row],[Proiectat]]-TabelVenit[[#This Row],[Real]]","v":{"v":0,"d":"0.00 lei"}}]
[null,"Venit 2",{"v":1300,"d":"1,300.00 lei"},{"v":1300,"d":"1,300.00 lei"},{"$f":"TabelVenit[[#This Row],[Proiectat]]-TabelVenit[[#This Row],[Real]]","v":{"v":0,"d":"0.00 lei"}}]
[null,"Venit suplimentar",{"v":300,"d":"300.00 lei"},{"v":300,"d":"300.00 lei"},{"$f":"TabelVenit[[#This Row],[Proiectat]]-TabelVenit[[#This Row],[Real]]","v":{"v":0,"d":"0.00 lei"}}]
[null,"Total venit lunar",{"$f":"SUBTOTAL(109,TabelVenit[Proiectat])","v":{"v":5600,"d":"5,600.00 lei"}},{"$f":"SUBTOTAL(109,TabelVenit[Real])","v":{"v":5600,"d":"5,600.00 lei"}},{"$f":"SUBTOTAL(109,TabelVenit[Diferență])","v":{"v":0,"d":"0.00 lei"}}]

{"sheet":"Cheltuieli","index":3,"n_rows":80,"n_cols":6,"rows_kept":80,"merged":[[0,1,0,5],[1,1,1,5],[2,1,2,5]]}
[null,{"$f":"Titlu_RegistruLucru","v":"BUGET FAMILIAL LUNAR"}]
[null,"CHELTUIELI"]
[null,"Slicerul pentru a filtra tabelul Cheltuieli după categorie se află în această celulă."]
[null,"Categorie","Subcategorie","Proiectat","Real","Diferență"]
[null,"Locuință","Credit ipotecar sau chirie",{"v":1000,"d":"1,000.00 lei"},{"v":1000,"d":"1,000.00 lei"},{"$f":"TabelCheltuieli[[#This Row],[Proiectat]]-TabelCheltuieli[[#This Row],[Real]]","v":{"v":0,"d":"0.00 lei"}}]
[null,"Locuință","Al doilea credit ipotecar sau a doua chirie",{"v":0,"d":"0.00 lei"},{"v":0,"d":"0.00 lei"},{"$f":"TabelCheltuieli[[#This Row],[Proiectat]]-TabelCheltuieli[[#This Row],[Real]]","v":{"v":0,"d":"0.00 lei"}}]
[null,"Locuință","Telefon",{"v":54,"d":"54.00 lei"},{"v":100,"d":"100.00 lei"},{"$f":"TabelCheltuieli[[#This Row],[Proiectat]]-TabelCheltuieli[[#This Row],[Real]]","v":{"v":-46,"d":"-46.00 lei"}}]
[null,"Locuință","Electricitate",{"v":44,"d":"44.00 lei"},{"v":56,"d":"56.00 lei"},{"$f":"TabelCheltuieli[[#This Row],[Proiectat]]-TabelCheltuieli[[#This Row],[Real]]","v":{"v":-12,"d":"-12.00 lei"}}]
[null,"Locuință","Gaze",{"v":22,"d":"22.00 lei"},{"v":28,"d":"28.00 lei"},{"$f":"TabelCheltuieli[[#This Row],[Proiectat]]-TabelCheltuieli[[#This Row],[Real]]","v":{"v":-6,"d":"-6.00 lei"}}]
[null,"Locuință","Apă și canalizare",{"v":8,"d":"8.00 lei"},{"v":8,"d":"8.00 lei"},{"$f":"TabelCheltuieli[[#This Row],[Proiectat]]-TabelCheltuieli[[#This Row],[Real]]","v":{"v":0,"d":"0.00 lei"}}]
[null,"Locuință","Cablu",{"v":34,"d":"34.00 lei"},{"v":34,"d":"34.00 lei"},{"$f":"TabelCheltuieli[[#This Row],[Proiectat]]-TabelCheltuieli[[#This Row],[Real]]","v":{"v":0,"d":"0.00 lei"}}]
[null,"Locuință","Eliminare reziduri",{"v":10,"d":"10.00 lei"},{"v":10,"d":"10.00 lei"},{"$f":"TabelCheltuieli[[#This Row],[Proiectat]]-TabelCheltuieli[[#This Row],[Real]]","v":{"v":0,"d":"0.00 lei"}}]
[null,"Locuință","Întreținere sau reparații",{"v":23,"d":"23.00 lei"},{"v":0,"d":"0.00 lei"},{"$f":"TabelCheltuieli[[#This Row],[Proiectat]]-TabelCheltuieli[[#This Row],[Real]]","v":{"v":23,"d":"23.00 lei"}}]
[null,"Locuință","Consumabile",{"v":0,"d":"0.00 lei"},{"v":0,"d":"0.00 lei"},{"$f":"TabelCheltuieli[[#This Row],[Proiectat]]-TabelCheltuieli[[#This Row],[Real]]","v":{"v":0,"d":"0.00 lei"}}]
[null,"Locuință","Altele",{"v":0,"d":"0.00 lei"},{"v":0,"d":"0.00 lei"},{"$f":"TabelCheltuieli[[#This Row],[Proiectat]]-TabelCheltuieli[[#This Row],[Real]]","v":{"v":0,"d":"0.00 lei"}}]
[null,"Transport","Plată autovehicul 1",{"v":16,"d":"16.00 lei"},{"v":66,"d":"66.00 lei"},{"$f":"TabelCheltuieli[[#This Row],[Proiectat]]-TabelCheltuieli[[#This Row],[Real]]","v":{"v":-50,"d":"-50.00 lei"}}]
[null,"Transport","Plată autovehicul 2",{"v":35,"d":"35.00 lei"},{"v":42,"d":"42.00 lei"},{"$f":"TabelCheltuieli[[#This Row],[Proiectat]]-TabelCheltuieli[[#This Row],[Real]]","v":{"v":-7,"d":"-7.00 lei"}}]
[null,"Transport","Tarif autobuz/taxi",{"v":1,"d":"1.00 lei"},{"v":62,"d":"62.00 lei"},{"$f":"TabelCheltuieli[[#This Row],[Proiectat]]-TabelCheltuieli[[#This Row],[Real]]","v":{"v":-61,"d":"-61.00 lei"}}]
[null,"Transport","Asigurare",{"v":91,"d":"91.00 lei"},{"v":27,"d":"27.00 lei"},{"$f":"TabelCheltuieli[[#This Row],[Proiectat]]-TabelCheltuieli[[#This Row],[Real]]","v":{"v":64,"d":"64.00 lei"}}]
[null,"Transport","Licențiere",{"v":80,"d":"80.00 lei"},{"v":89,"d":"89.00 lei"},{"$f":"TabelCheltuieli[[#This Row],[Proiectat]]-TabelCheltuieli[[#This Row],[Real]]","v":{"v":-9,"d":"-9.00 lei"}}]
[null,"Transport","Benzină",{"v":18,"d":"18.00 lei"},{"v":93,"d":"93.00 lei"},{"$f":"TabelCheltuieli[[#This Row],[Proiectat]]-TabelCheltuieli[[#This Row],[Real]]","v":{"v":-75,"d":"-75.00 lei"}}]
[null,"Transport","Întreținere",{"v":34,"d":"34.00 lei"},{"v":37,"d":"37.00 lei"},{"$f":"TabelCheltuieli[[#This Row],[Proiectat]]-TabelCheltuieli[[#This Row],[Real]]","v":{"v":-3,"d":"-3.00 lei"}}]
[null,"Transport","Altele",{"v":83,"d":"83.00 lei"},{"v":61,"d":"61.00 lei"},{"$f":"TabelCheltuieli[[#This Row],[Proiectat]]-TabelCheltuieli[[#This Row],[Real]]","v":{"v":22,"d":"22.00 lei"}}]
[null,"Asigurare","Casă",{"v":48,"d":"48.00 lei"},{"v":63,"d":"63.00 lei"},{"$f":"TabelCheltuieli[[#This Row],[Proiectat]]-TabelCheltuieli[[#This Row],[Real]]","v":{"v":-15,"d":"-15.00 lei"}}]
[null,"Asigurare","Stare",{"v":21,"d":"21.00 lei"},{"v":44,"d":"44.00 lei"},{"$f":"TabelCheltuieli[[#This Row],[Proiectat]]-TabelCheltuieli[[#This Row],[Real]]","v":{"v":-23,"d":"-23.00 lei"}}]
[null,"Asigurare","Viață",{"v":35,"d":"35.00 lei"},{"v":65,"d":"65.00 lei"},{"$f":"TabelCheltuieli[[#This Row],[Proiectat]]-TabelCheltuieli[[#This Row],[Real]]","v":{"v":-30,"d":"-30.00 lei"}}]
[null,"Asigurare","Altele",{"v":14,"d":"14.00 lei"},{"v":75,"d":"75.00 lei"},{"$f":"TabelCheltuieli[[#This Row],[Proiectat]]-TabelCheltuieli[[#This Row],[Real]]","v":{"v":-61,"d":"-61.00 lei"}}]
[null,"Mâncăruri","Alimente",{"v":79,"d":"79.00 lei"},{"v":0,"d":"0.00 lei"},{"$f":"TabelCheltuieli[[#This Row],[Proiectat]]-TabelCheltuieli[[#This Row],[Real]]","v":{"v":79,"d":"79.00 lei"}}]
[null,"Mâncăruri","Masă în oraș",{"v":56,"d":"56.00 lei"},{"v":50,"d":"50.00 lei"},{"$f":"TabelCheltuieli[[#This Row],[Proiectat]]-TabelCheltuieli[[#This Row],[Real]]","v":{"v":6,"d":"6.00 lei"}}]
[null,"Mâncăruri","Altele",{"v":96,"d":"96.00 lei"},{"v":23,"d":"23.00 lei"},{"$f":"TabelCheltuieli[[#This Row],[Proiectat]]-TabelCheltuieli[[#This Row],[Real]]","v":{"v":73,"d":"73.00 lei"}}]
[null,"Copii","Medic",{"v":90,"d":"90.00 lei"},{"v":90,"d":"90.00 lei"},{"$f":"TabelCheltuieli[[#This Row],[Proiectat]]-TabelCheltuieli[[#This Row],[Real]]","v":{"v":0,"d":"0.00 lei"}}]
[null,"Copii","Îmbrăcăminte",{"v":33,"d":"33.00 lei"},{"v":30,"d":"30.00 lei"},{"$f":"TabelCheltuieli[[#This Row],[Proiectat]]-TabelCheltuieli[[#This Row],[Real]]","v":{"v":3,"d":"3.00 lei"}}]
[null,"Copii","Taxe școlare",{"v":86,"d":"86.00 lei"},{"v":64,"d":"64.00 lei"},{"$f":"TabelCheltuieli[[#This Row],[Proiectat]]-TabelCheltuieli[[#This Row],[Real]]","v":{"v":22,"d":"22.00 lei"}}]
[null,"Copii","Rechizite școlare",{"v":76,"d":"76.00 lei"},{"v":2,"d":"2.00 lei"},{"$f":"TabelCheltuieli[[#This Row],[Proiectat]]-TabelCheltuieli[[#This Row],[Real]]","v":{"v":74,"d":"74.00 lei"}}]
[null,"Copii","Datoriile sau taxele către organizație",{"v":60,"d":"60.00 lei"},{"v":90,"d":"90.00 lei"},{"$f":"TabelCheltuieli[[#This Row],[Proiectat]]-TabelCheltuieli[[#This Row],[Real]]","v":{"v":-30,"d":"-30.00 lei"}}]
[null,"Copii","Bani prânz",{"v":37,"d":"37.00 lei"},{"v":60,"d":"60.00 lei"},{"$f":"TabelCheltuieli[[#This Row],[Proiectat]]-TabelCheltuieli[[#This Row],[Real]]","v":{"v":-23,"d":"-23.00 lei"}}]
[null,"Copii","Îngrijirea copilului",{"v":22,"d":"22.00 lei"},{"v":70,"d":"70.00 lei"},{"$f":"TabelCheltuieli[[#This Row],[Proiectat]]-TabelCheltuieli[[#This Row],[Real]]","v":{"v":-48,"d":"-48.00 lei"}}]
[null,"Copii","Jucării/jocuri",{"v":80,"d":"80.00 lei"},{"v":21,"d":"21.00 lei"},{"$f":"TabelCheltuieli[[#This Row],[Proiectat]]-TabelCheltuieli[[#This Row],[Real]]","v":{"v":59,"d":"59.00 lei"}}]
[null,"Copii","Altele",{"v":65,"d":"65.00 lei"},{"v":20,"d":"20.00 lei"},{"$f":"TabelCheltuieli[[#This Row],[Proiectat]]-TabelCheltuieli[[#This Row],[Real]]","v":{"v":45,"d":"45.00 lei"}}]
[null,"Animale de casă","Mâncăruri",{"v":37,"d":"37.00 lei"},{"v":34,"d":"34.00 lei"},{"$f":"TabelCheltuieli[[#This Row],[Proiectat]]-TabelCheltuieli[[#This Row],[Real]]","v":{"v":3,"d":"3.00 lei"}}]
[null,"Animale de casă","Medic",{"v":74,"d":"74.00 lei"},{"v":86,"d":"86.00 lei"},{"$f":"TabelCheltuieli[[#This Row],[Proiectat]]-TabelCheltuieli[[#This Row],[Real]]","v":{"v":-12,"d":"-12.00 lei"}}]
[null,"Animale de casă","Îngrijire",{"v":80,"d":"80.00 lei"},{"v":92,"d":"92.00 lei"},{"$f":"TabelCheltuieli[[#This Row],[Proiectat]]-TabelCheltuieli[[#This Row],[Real]]","v":{"v":-12,"d":"-12.00 lei"}}]
[null,"Animale de casă","Jucării",{"v":61,"d":"61.00 lei"},{"v":22,"d":"22.00 lei"},{"$f":"TabelCheltuieli[[#This Row],[Proiectat]]-TabelCheltuieli[[#This Row],[Real]]","v":{"v":39,"d":"39.00 lei"}}]
[null,"Animale de casă","Altele",{"v":83,"d":"83.00 lei"},{"v":51,"d":"51.00 lei"},{"$f":"TabelCheltuieli[[#This Row],[Proiectat]]-TabelCheltuieli[[#This Row],[Real]]","v":{"v":32,"d":"32.00 lei"}}]
[null,"Îngrijire personală","Medic",{"v":28,"d":"28.00 lei"},{"v":10,"d":"10.00 lei"},{"$f":"TabelCheltuieli[[#This Row],[Proiectat]]-TabelCheltuieli[[#This Row],[Real]]","v":{"v":18,"d":"18.00 lei"}}]
[null,"Îngrijire personală","Păr/unghii",{"v":25,"d":"25.00 lei"},{"v":81,"d":"81.00 lei"},{"$f":"TabelCheltuieli[[#This Row],[Proiectat]]-TabelCheltuieli[[#This Row],[Real]]","v":{"v":-56,"d":"-56.00 lei"}}]
[null,"Îngrijire personală","Îmbrăcăminte",{"v":59,"d":"59.00 lei"},{"v":72,"d":"72.00 lei"},{"$f":"TabelCheltuieli[[#This Row],[Proiectat]]-TabelCheltuieli[[#This Row],[Real]]","v":{"v":-13,"d":"-13.00 lei"}}]
[null,"Îngrijire personală","Curățătorie",{"v":89,"d":"89.00 lei"},{"v":90,"d":"90.00 lei"},{"$f":"TabelCheltuieli[[#This Row],[Proiectat]]-TabelCheltuieli[[#This Row],[Real]]","v":{"v":-1,"d":"-1.00 lei"}}]
[null,"Îngrijire personală","Club de sănătate",{"v":78,"d":"78.00 lei"},{"v":48,"d":"48.00 lei"},{"$f":"TabelCheltuieli[[#This Row],[Proiectat]]-TabelCheltuieli[[#This Row],[Real]]","v":{"v":30,"d":"30.00 lei"}}]
[null,"Îngrijire personală","Datoriile sau taxele către organizație",{"v":6,"d":"6.00 lei"},{"v":73,"d":"73.00 lei"},{"$f":"TabelCheltuieli[[#This Row],[Proiectat]]-TabelCheltuieli[[#This Row],[Real]]","v":{"v":-67,"d":"-67.00 lei"}}]
[null,"Îngrijire personală","Altele",{"v":80,"d":"80.00 lei"},{"v":66,"d":"66.00 lei"},{"$f":"TabelCheltuieli[[#This Row],[Proiectat]]-TabelCheltuieli[[#This Row],[Real]]","v":{"v":14,"d":"14.00 lei"}}]
[null,"Distracție","Video/DVD",{"v":11,"d":"11.00 lei"},{"v":29,"d":"29.00 lei"},{"$f":"TabelCheltuieli[[#This Row],[Proiectat]]-TabelCheltuieli[[#This Row],[Real]]","v":{"v":-18,"d":"-18.00 lei"}}]
[null,"Distracție","CD-uri",{"v":77,"d":"77.00 lei"},{"v":32,"d":"32.00 lei"},{"$f":"TabelCheltuieli[[#This Row],[Proiectat]]-TabelCheltuieli[[#This Row],[Real]]","v":{"v":45,"d":"45.00 lei"}}]
[null,"Distracție","Filme",{"v":71,"d":"71.00 lei"},{"v":43,"d":"43.00 lei"},{"$f":"TabelCheltuieli[[#This Row],[Proiectat]]-TabelCheltuieli[[#This Row],[Real]]","v":{"v":28,"d":"28.00 lei"}}]
[null,"Distracție","Concerte",{"v":64,"d":"64.00 lei"},{"v":21,"d":"21.00 lei"},{"$f":"TabelCheltuieli[[#This Row],[Proiectat]]-TabelCheltuieli[[#This Row],[Real]]","v":{"v":43,"d":"43.00 lei"}}]
[null,"Distracție","Evenimente sportive",{"v":47,"d":"47.00 lei"},{"v":57,"d":"57.00 lei"},{"$f":"TabelCheltuieli[[#This Row],[Proiectat]]-TabelCheltuieli[[#This Row],[Real]]","v":{"v":-10,"d":"-10.00 lei"}}]
[null,"Distracție","Teatru live",{"v":28,"d":"28.00 lei"},{"v":1,"d":"1.00 lei"},{"$f":"TabelCheltuieli[[#This Row],[Proiectat]]-TabelCheltuieli[[#This Row],[Real]]","v":{"v":27,"d":"27.00 lei"}}]
[null,"Distracție","Altele",{"v":13,"d":"13.00 lei"},{"v":42,"d":"42.00 lei"},{"$f":"TabelCheltuieli[[#This Row],[Proiectat]]-TabelCheltuieli[[#This Row],[Real]]","v":{"v":-29,"d":"-29.00 lei"}}]
[null,"Împrumuturi","Personal",{"v":65,"d":"65.00 lei"},{"v":6,"d":"6.00 lei"},{"$f":"TabelCheltuieli[[#This Row],[Proiectat]]-TabelCheltuieli[[#This Row],[Real]]","v":{"v":59,"d":"59.00 lei"}}]
[null,"Împrumuturi","Student",{"v":100,"d":"100.00 lei"},{"v":36,"d":"36.00 lei"},{"$f":"TabelCheltuieli[[#This Row],[Proiectat]]-TabelCheltuieli[[#This Row],[Real]]","v":{"v":64,"d":"64.00 lei"}}]
[null,"Împrumuturi","Card de credit",{"v":29,"d":"29.00 lei"},{"v":69,"d":"69.00 lei"},{"$f":"TabelCheltuieli[[#This Row],[Proiectat]]-TabelCheltuieli[[#This Row],[Real]]","v":{"v":-40,"d":"-40.00 lei"}}]
[null,"Împrumuturi","Card de credit",{"v":64,"d":"64.00 lei"},{"v":3,"d":"3.00 lei"},{"$f":"TabelCheltuieli[[#This Row],[Proiectat]]-TabelCheltuieli[[#This Row],[Real]]","v":{"v":61,"d":"61.00 lei"}}]
[null,"Împrumuturi","Card de credit",{"v":34,"d":"34.00 lei"},{"v":35,"d":"35.00 lei"},{"$f":"TabelCheltuieli[[#This Row],[Proiectat]]-TabelCheltuieli[[#This Row],[Real]]","v":{"v":-1,"d":"-1.00 lei"}}]
[null,"Împrumuturi","Altele",{"v":38,"d":"38.00 lei"},{"v":52,"d":"52.00 lei"},{"$f":"TabelCheltuieli[[#This Row],[Proiectat]]-TabelCheltuieli[[#This Row],[Real]]","v":{"v":-14,"d":"-14.00 lei"}}]
[null,"Impozite și taxe","Regional",{"v":84,"d":"84.00 lei"},{"v":36,"d":"36.00 lei"},{"$f":"TabelCheltuieli[[#This Row],[Proiectat]]-TabelCheltuieli[[#This Row],[Real]]","v":{"v":48,"d":"48.00 lei"}}]
[null,"Impozite și taxe","Județ",{"v":2,"d":"2.00 lei"},{"v":83,"d":"83.00 lei"},{"$f":"TabelCheltuieli[[#This Row],[Proiectat]]-TabelCheltuieli[[#This Row],[Real]]","v":{"v":-81,"d":"-81.00 lei"}}]
[null,"Impozite și taxe","Local",{"v":40,"d":"40.00 lei"},{"v":20,"d":"20.00 lei"},{"$f":"TabelCheltuieli[[#This Row],[Proiectat]]-TabelCheltuieli[[#This Row],[Real]]","v":{"v":20,"d":"20.00 lei"}}]
[null,"Impozite și taxe","Altele",{"v":35,"d":"35.00 lei"},{"v":72,"d":"72.00 lei"},{"$f":"TabelCheltuieli[[#This Row],[Proiectat]]-TabelCheltuieli[[#This Row],[Real]]","v":{"v":-37,"d":"-37.00 lei"}}]
[null,"Economii sau investiții","Cont pensionare",{"v":34,"d":"34.00 lei"},{"v":20,"d":"20.00 lei"},{"$f":"TabelCheltuieli[[#This Row],[Proiectat]]-TabelCheltuieli[[#This Row],[Real]]","v":{"v":14,"d":"14.00 lei"}}]
[null,"Economii sau investiții","Cont de investiții",{"v":68,"d":"68.00 lei"},{"v":98,"d":"98.00 lei"},{"$f":"TabelCheltuieli[[#This Row],[Proiectat]]-TabelCheltuieli[[#This Row],[Real]]","v":{"v":-30,"d":"-30.00 lei"}}]
[null,"Economii sau investiții","Facultate",{"v":89,"d":"89.00 lei"},{"v":68,"d":"68.00 lei"},{"$f":"TabelCheltuieli[[#This Row],[Proiectat]]-TabelCheltuieli[[#This Row],[Real]]","v":{"v":21,"d":"21.00 lei"}}]
[null,"Economii sau investiții","Altele",{"v":82,"d":"82.00 lei"},{"v":26,"d":"26.00 lei"},{"$f":"TabelCheltuieli[[#This Row],[Proiectat]]-TabelCheltuieli[[#This Row],[Real]]","v":{"v":56,"d":"56.00 lei"}}]
[null,"Cadouri și donații","Caritate 1",{"v":41,"d":"41.00 lei"},{"v":85,"d":"85.00 lei"},{"$f":"TabelCheltuieli[[#This Row],[Proiectat]]-TabelCheltuieli[[#This Row],[Real]]","v":{"v":-44,"d":"-44.00 lei"}}]
[null,"Cadouri și donații","Caritate 2",{"v":0,"d":"0.00 lei"},{"v":69,"d":"69.00 lei"},{"$f":"TabelCheltuieli[[#This Row],[Proiectat]]-TabelCheltuieli[[#This Row],[Real]]","v":{"v":-69,"d":"-69.00 lei"}}]
[null,"Cadouri și donații","Caritate 3",{"v":2,"d":"2.00 lei"},{"v":57,"d":"57.00 lei"},{"$f":"TabelCheltuieli[[#This Row],[Proiectat]]-TabelCheltuieli[[#This Row],[Real]]","v":{"v":-55,"d":"-55.00 lei"}}]
[null,"Juridic","Avocat",{"v":7,"d":"7.00 lei"},{"v":98,"d":"98.00 lei"},{"$f":"TabelCheltuieli[[#This Row],[Proiectat]]-TabelCheltuieli[[#This Row],[Real]]","v":{"v":-91,"d":"-91.00 lei"}}]
[null,"Juridic","Pensie",{"v":39,"d":"39.00 lei"},{"v":85,"d":"85.00 lei"},{"$f":"TabelCheltuieli[[#This Row],[Proiectat]]-TabelCheltuieli[[#This Row],[Real]]","v":{"v":-46,"d":"-46.00 lei"}}]
[null,"Juridic","Plăți pentru sechestru sau judecată",{"v":78,"d":"78.00 lei"},{"v":84,"d":"84.00 lei"},{"$f":"TabelCheltuieli[[#This Row],[Proiectat]]-TabelCheltuieli[[#This Row],[Real]]","v":{"v":-6,"d":"-6.00 lei"}}]
[null,"Juridic","Altele",{"v":93,"d":"93.00 lei"},{"v":71,"d":"71.00 lei"},{"$f":"TabelCheltuieli[[#This Row],[Proiectat]]-TabelCheltuieli[[#This Row],[Real]]","v":{"v":22,"d":"22.00 lei"}}]
[null,"Total",{"$nulls":3},{"$f":"SUBTOTAL(109,TabelCheltuieli[Diferență])","v":{"v":-117,"d":"-117.00 lei"}}]